fUSD/lending_fUSD_20251031
["ID","MTS","AMOUNT","RATE_DAILY","PERIOD"]
[392777590,1761946233591,-1339.14935823,0.000149,2]
[392777591,1761946233603,-223.63075414,0.000149,2]
[392777592,1761946233613,-290.7383352,0.000149,2]
[392777593,1761946233622,-373.89927745,0.000149,2]
[392777594,1761946233632,-856.61772314,0.000149,2]
[392777595,1761946233641,-159.20554132,0.000149,2]
[392777596,1761946233652,-620.75590989,0.000149,2]
[392777597,1761946233660,-290.73833515,0.000149,2]
[392777598,1761946233670,-173.67422531,0.000149,2]
[392777599,1761946233679,-290.73833515,0.000149,2]
[392777600,1761946233688,-173.67422531,0.000149,2]
[392777601,1761946233697,-290.73833515,0.00014901,2]
[392777602,1761946233706,-173.67422531,0.00014901,2]
[392777603,1761946233715,-290.73833515,0.00014901,2]
[392777604,1761946233724,-173.67422531,0.00014901,2]
[392777605,1761946233733,-290.73833515,0.00014901,2]
[392777606,1761946233743,-173.67422531,0.00014901,2]
[392777607,1761946233753,-290.73833515,0.00014901,2]
[392777608,1761946233762,-161.71,0.0001495,2]
[392777609,1761946233771,-26.69376603,0.00014959,2]
[392777610,1761946233797,-153.30623397,0.00014959,2]
[392777611,1761946233807,-500.0,0.00014973,2]
[392777612,1761946233816,-500.0,0.00014973,2]
[392777613,1761946233825,-500.0,0.00014973,2]
[392777614,1761946233834,-516.43133353,0.00014973,2]
[392777615,1761946233843,-500.0,0.00014973,2]
[392777616,1761946233852,-500.0,0.00014973,2]
[392777617,1761946233862,-500.0,0.00014979,2]
[392777618,1761946233871,-500.0,0.00014979,2]
[392777619,1761946233880,-500.0,0.00014979,2]
[392777620,1761946233889,-500.0,0.00014979,2]
[392777621,1761946233898,-500.0,0.00014979,2]
[392777622,1761946233908,-500.0,0.00014979,2]
[392777623,1761946233918,-500.0,0.00014979,2]
[392777624,1761946233927,-500.0,0.00014979,2]
[392777625,1761946233937,-500.0,0.00014979,2]
[392777626,1761946233947,-500.0,0.00014979,2]
[392777627,1761946233956,-500.0,0.00014979,2]
[392777628,1761946233965,-500.0,0.00014979,2]
[392777629,1761946233975,-500.0,0.00014979,2]
[392777630,1761946233984,-500.0,0.00014979,2]
[392777631,1761946233993,-500.0,0.00014979,2]
[392777632,1761946234002,-500.0,0.00014979,2]
[392777633,1761946234012,-500.0,0.00014979,2]
[392777634,1761946234021,-500.0,0.00014979,2]
[392777635,1761946234030,-500.0,0.00014979,2]
[392777636,1761946234039,-500.0,0.00014979,2]
[392777637,1761946234048,-169.56243813,0.00014979,2]
[392777638,1761946234057,-500.0,0.00014979,2]
[392777639,1761946234066,-500.0,0.00014979,2]
[392777640,1761946234075,-500.0,0.00014979,2]
[392777641,1761946234084,-500.0,0.00014979,2]
[392777642,1761946234093,-500.0,0.00014979,2]
[392777643,1761946234103,-500.0,0.00014979,2]
[392777644,1761946234112,-500.0,0.00014979,2]
[392777645,1761946234121,-500.0,0.00014979,2]
[392777646,1761946234130,-500.0,0.00014979,2]
[392777647,1761946234139,-500.0,0.00014979,2]
[392777648,1761946234148,-500.0,0.00014979,2]
[392777649,1761946234158,-150.0,0.00014979,2]
[392777650,1761946234167,-500.0,0.00014979,2]
[392777651,1761946234176,-500.0,0.00014979,2]
[392777652,1761946234185,-500.0,0.00014979,2]
[392777653,1761946234195,-500.0,0.00014979,2]
[392777654,1761946234204,-500.0,0.00014979,2]
[392777655,1761946234213,-528.30987535,0.00014979,2]
[392777656,1761946234222,-6156.23488112,0.0001498,2]
[392777657,1761946234234,-21686.93177365,0.0001498,2]
[392777658,1761946234294,-387.12827108,0.0001498,2]
[392777659,1761946234306,-404.53844161,0.0001498,2]
[392777660,1761946234322,-531.67165279,0.0001498,2]
[392777661,1761946234343,-271.91129923,0.0001498,2]
[392777664,1761946238235,-880.40306062,0.0001498,2]
[392777665,1761946238454,-104315.65685166,0.0001498,2]
[392777666,1761946238464,-2488.62636,0.0001498,2]
[392777667,1761946238473,-295.77703678,0.0001499,2]
[392777668,1761946238482,-500.0,0.0001499,2]
[392777669,1761946238492,-151.0,0.0001499,2]
[392777670,1761946238502,-500.0,0.0001499,2]
[392777671,1761946238512,-151.0,0.0001499,2]
[392777673,1761946238521,-500.0,0.0001499,2]
[392777674,1761946238530,-151.0,0.0001499,2]
[392777675,1761946238539,-362.76525985,0.0001499,2]
[392777676,1761946238548,-151.0,0.0001499,2]
[392777677,1761946238557,-151.0,0.0001499,2]
[392777678,1761946238567,-151.0,0.0001499,2]
[392777679,1761946238576,-151.0,0.0001499,2]
[392777680,1761946238585,-151.0,0.0001499,2]
[392777681,1761946238594,-151.0,0.0001499,2]
[392777682,1761946238603,-151.0,0.0001499,2]
[392777683,1761946238612,-151.0,0.0001499,2]
[392777684,1761946238622,-4759.2,0.0001499,2]
[392777685,1761946238631,-4759.2,0.0001499,2]
[392777686,1761946238640,-4069.945,0.00014991,2]
[392777687,1761946238648,-167.821,0.00014991,2]
[392777688,1761946238657,-1318.04,0.00014991,2]
[392777689,1761946238666,-151.0,0.00014997,2]
[392777690,1761946238676,-500.0,0.00014999,2]
[392777691,1761946238684,-287.0,0.00014999,2]
[392777692,1761946238694,-418.0,0.00014999,2]
[392777693,1761946238703,-213.49911288,0.00014999,2]
[392777694,1761946238712,-500.0,0.00014999,2]
[392777695,1761946238721,-500.0,0.00014999,2]
[392777696,1761946238731,-500.0,0.00014999,2]
[392777697,1761946238740,-433.07848082,0.00014999,2]
[392777698,1761946238750,-150.0,0.00014999,2]
[392777699,1761946238759,-150.0,0.00014999,2]
[392777700,1761946238768,-150.0,0.00014999,2]
[392777701,1761946238777,-768.0,0.00014999,2]
[392777702,1761946238787,-583.40166058,0.00014999,2]
[392777703,1761946238796,-411.21724427,0.00014999,2]
[392777704,1761946238806,-150.0,0.00014999,2]
[392777705,1761946238815,-150.0,0.00014999,2]
[392777706,1761946238825,-500.0,0.00014999,2]
[392777707,1761946238835,-150.0,0.00014999,2]
[392777708,1761946238845,-150.0,0.00014999,2]
[392777709,1761946238854,-150.0,0.00014999,2]
[392777710,1761946238863,-500.0,0.00014999,2]
[392777711,1761946238872,-500.0,0.00014999,2]
[392777712,1761946238882,-257.02911303,0.00014999,2]
[392777713,1761946238891,-500.0,0.00014999,2]
[392777714,1761946238900,-204.40463205,0.00014999,2]
[392777715,1761946238909,-500.0,0.00014999,2]
[392777716,1761946238919,-150.0,0.00014999,2]
[392777717,1761946238928,-200.0,0.00014999,2]
[392777718,1761946238938,-150.0,0.00014999,2]
[392777719,1761946238948,-150.0,0.00014999,2]
[392777720,1761946238957,-150.0,0.00014999,2]
[392777721,1761946238967,-500.0,0.00014999,2]
[392777722,1761946238977,-500.0,0.00014999,2]
[392777723,1761946238987,-599.43,0.00014999,2]
[392777724,1761946238995,-599.43,0.00014999,2]
[392777725,1761946239003,-599.43,0.00014999,2]
[392777726,1761946239011,-599.43,0.00014999,2]
[392777727,1761946239019,-599.43,0.00014999,2]
[392777728,1761946239027,-599.43,0.00014999,2]
[392777729,1761946239035,-599.43,0.00014999,2]
[392777730,1761946239057,-599.43,0.00014999,2]
[392777731,1761946239066,-599.43,0.00014999,2]
[392777732,1761946239075,-638.36998471,0.00014999,2]
[392777733,1761946239083,-500.0,0.00014999,2]
[392777734,1761946239092,-500.0,0.00014999,2]
[392777735,1761946239101,-500.0,0.00014999,2]
[392777736,1761946239111,-500.0,0.00014999,2]
[392777737,1761946239120,-351.56346391,0.00014999,2]
[392777738,1761946239129,-500.0,0.00014999,2]
[392777739,1761946239139,-500.0,0.00014999,2]
[392777740,1761946239148,-500.0,0.00014999,2]
[392777741,1761946239158,-500.0,0.00014999,2]
[392777742,1761946239167,-500.0,0.00014999,2]
[392777743,1761946239177,-478.55,0.00014999,2]
[392777744,1761946239186,-3472.0,0.00015,2]
[392777745,1761946239196,-2085836.28873053,0.00015,2]
[392777746,1761946239205,-25238.05757972,0.00015,2]
[392777747,1761946239214,-45107.59335742,0.00015,2]
[392777748,1761946239224,-209.14208731,0.00015,2]
[392777749,1761946239233,-151.0,0.00015,2]
[392777750,1761946239243,-861.22399573,0.00015,2]
[392777751,1761946239253,-140707.973002,0.00015,2]
[392777752,1761946239263,-17091.5685512,0.00015,2]
[392777753,1761946239272,-500.0,0.00015,2]
[392777754,1761946239282,-160.0,0.00015,2]
[392777755,1761946239291,-3617688.99644465,0.00015,2]
[392777756,1761946239306,-4651.3296163,0.00015,2]
[392777757,1761946239320,-17726.49526093,0.00015,2]
[392777758,1761946239332,-3366.54151354,0.00015,2]
[392777759,1761946239344,-20419.87409494,0.00015,2]
[392777763,1761946240730,-1528.57405735,0.00015,2]
[392777764,1761946240746,-1667.5839208,0.00015,2]
[392777765,1761946240858,-336.54179873,0.00015,2]
[392777803,1761946244146,-1000.0,0.00014891,2]
[392777804,1761946244155,-97.3,0.00015,2]
[392777805,1761946244166,-1441.29791004,0.00015,2]
[392777806,1761946244176,-316.92157594,0.00015,2]
[392777807,1761946244186,-404.9,0.00015,2]
[392777808,1761946244197,-561.68196435,0.00015,2]
[392777809,1761946244208,-343.92951918,0.00015,2]
[392777810,1761946246286,-14602.89532176,0.00015,2]
[392777811,1761946246344,-804.47039619,0.00015,2]
[392777812,1761946246475,-0.79843027,0.00015,2]
[392777813,1761946246515,-420.22282652,0.00015,2]
[392777836,1761946398410,500.0,0.00027852,120]
[392777850,1761946744337,400.0,0.000142,5]
[392777851,1761946746614,800.0,0.000143,5]
[392777854,1761946748531,1300.0,0.000144,5]
[392777855,1761946751205,1700.0,0.000145,5]
[392777856,1761946752749,2100.0,0.000146,5]
[392777857,1761946755098,400.0,0.000147,5]
[392777858,1761946757204,400.0,0.000148,5]
[392777859,1761946759342,400.0,0.000149,5]
[392777866,1761946854314,-485.64328153,0.00013808,2]
[392777867,1761946856541,-269.37705323,0.00013808,2]
[392777868,1761946858606,-269.37705323,0.00013808,2]
[392777873,1761947095440,996.54057955,0.00014999,5]
[392777874,1761947095519,1304.61327251,0.00014999,5]
[392777875,1761947114765,150.0,0.00013488,2]
[392777876,1761947115064,150.0,0.00013488,2]
[392777877,1761947121109,150.0,0.00013488,2]
[392777879,1761947291970,-897.97825,0.0001361,2]
[392777880,1761947291996,-215.79980123,0.00013679,2]
[392777881,1761947292023,-1805.96625593,0.00013696,2]
[392777882,1761947297652,948.39658099,0.00030137,120]
[392777893,1761947431986,-192.74374407,0.00013696,2]
[392777895,1761947431995,-633.65,0.00013699,2]
[392777897,1761947432005,-300.0,0.00013732,2]
[392777899,1761947432014,-300.0,0.00013732,2]
[392777901,1761947432023,-150.0,0.00013737,2]
[392777903,1761947432032,-200.0,0.00013779,2]
[392777906,1761947432041,-190.0,0.00013875,2]
[392777909,1761947432050,-150.0,0.00013875,2]
[392777912,1761947432059,-300.0,0.00013875,2]
[392777915,1761947432068,-300.0,0.00013875,2]
[392777917,1761947432076,-140.58019488,0.00013875,2]
[392777932,1761947432203,-312.0,0.00013875,2]
[392777934,1761947432214,-747.41980512,0.00013875,2]
[392777936,1761947432224,-295.77703678,0.00013876,2]
[392777938,1761947432233,-151.0,0.00013876,2]
[392777940,1761947432242,-151.0,0.00013876,2]
[392777942,1761947432251,-151.0,0.00013876,2]
[392777944,1761947432260,-151.0,0.00013876,2]
[392777946,1761947432269,-151.0,0.00013876,2]
[392777948,1761947432278,-151.0,0.00013876,2]
[392777950,1761947432287,-151.0,0.00013876,2]
[392777951,1761947432296,-151.0,0.00013876,2]
[392777953,1761947432305,-151.0,0.00013876,2]
[392777955,1761947432315,-151.0,0.00013876,2]
[392777957,1761947432324,-500.0,0.00013876,2]
[392777959,1761947432333,-151.0,0.00013876,2]
[392777961,1761947432342,-151.0,0.00013876,2]
[392777963,1761947432351,-414.45906147,0.00013876,2]
[392777965,1761947432360,-151.0,0.00013876,2]
[392777967,1761947432368,-151.0,0.00013876,2]
[392777969,1761947432377,-151.0,0.00013876,2]
[392777971,1761947432386,-151.0,0.00013876,2]
[392777973,1761947432395,-151.0,0.00013876,2]
[392777975,1761947432403,-151.0,0.00013876,2]
[392777977,1761947432412,-151.0,0.00013876,2]
[392777979,1761947432421,-151.0,0.00013876,2]
[392777981,1761947432430,-151.0,0.00013876,2]
[392777982,1761947432439,-151.0,0.00013876,2]
[392777983,1761947432448,-151.0,0.00013876,2]
[392777984,1761947432456,-151.0,0.00013876,2]
[392777985,1761947432465,-151.0,0.00013876,2]
[392777986,1761947432474,-151.0,0.00013876,2]
[392777987,1761947432484,-151.0,0.00013876,2]
[392777988,1761947432494,-500.0,0.00013876,2]
[392777989,1761947432505,-500.0,0.00013876,2]
[392777990,1761947432515,-500.0,0.00013876,2]
[392777991,1761947432523,-362.76525985,0.00013876,2]
[392777992,1761947432532,-200.0,0.00013878,2]
[392777993,1761947432541,-28937.12683679,0.00013884,2]
[392777994,1761947432555,-181.82316321,0.00013884,2]
[392777995,1761947432565,-150.0,0.00013892,2]
[392777996,1761947432575,-13651.36,0.00013921,2]
[392777997,1761947432585,-1000.0,0.0001398,2]
[392777998,1761947432593,-150.0,0.00013987,2]
[392777999,1761947432602,-250.0,0.00014093,2]
[392778000,1761947432611,-150.0,0.00014237,2]
[392778001,1761947432621,-150.0,0.00014237,2]
[392778002,1761947432631,-322.6107,0.00014249,2]
[392778003,1761947432640,-151.0,0.00014249,2]
[392778004,1761947432649,-500.0,0.00014249,2]
[392778005,1761947432659,-500.0,0.00014249,2]
[392778006,1761947432668,-500.0,0.00014249,2]
[392778007,1761947432679,-500.0,0.00014249,2]
[392778008,1761947432692,-500.0,0.00014249,2]
[392778009,1761947432702,-500.0,0.00014249,2]
[392778010,1761947432712,-151.0,0.00014249,2]
[392778011,1761947432722,-500.0,0.00014249,2]
[392778012,1761947432732,-500.0,0.00014249,2]
[392778013,1761947432742,-209.40437684,0.00014249,2]
[392778014,1761947432751,-500.0,0.00014249,2]
[392778015,1761947432761,-500.0,0.00014249,2]
[392778016,1761947432770,-500.0,0.00014249,2]
[392778017,1761947432779,-250.0,0.00014249,2]
[392778018,1761947432789,-250.0,0.00014249,2]
[392778019,1761947432799,-500.0,0.00014249,2]
[392778020,1761947432808,-250.0,0.00014249,2]
[392778021,1761947432817,-500.0,0.00014249,2]
[392778022,1761947432827,-250.0,0.00014249,2]
[392778023,1761947432836,-500.0,0.00014249,2]
[392778024,1761947433069,-250.0,0.00014249,2]
[392778025,1761947433078,-500.0,0.00014249,2]
[392778026,1761947433087,-250.0,0.00014249,2]
[392778027,1761947433097,-500.0,0.00014249,2]
[392778028,1761947433107,-250.0,0.00014249,2]
[392778029,1761947433116,-500.0,0.00014249,2]
[392778030,1761947433126,-250.0,0.00014249,2]
[392778031,1761947433135,-220.0,0.00014249,2]
[392778032,1761947433145,-574.12855637,0.00014249,2]
[392778033,1761947433154,-500.0,0.00014249,2]
[392778034,1761947433163,-250.0,0.00014249,2]
[392778035,1761947433173,-220.0,0.00014249,2]
[392778036,1761947433183,-500.0,0.00014249,2]
[392778037,1761947433193,-250.0,0.00014249,2]
[392778038,1761947433202,-500.0,0.00014249,2]
[392778039,1761947433212,-721.12765535,0.00014249,2]
[392778040,1761947433221,-250.0,0.00014249,2]
[392778041,1761947433236,-500.0,0.00014249,2]
[392778042,1761947433252,-250.0,0.00014249,2]
[392778043,1761947433263,-500.0,0.00014249,2]
[392778044,1761947433273,-250.0,0.00014249,2]
[392778045,1761947433283,-250.0,0.00014249,2]
[392778046,1761947433293,-363.49852504,0.00014249,2]
[392778047,1761947433302,-250.0,0.00014249,2]
[392778048,1761947433312,-250.0,0.00014249,2]
[392778049,1761947433323,-578.20924308,0.00014249,2]
[392778050,1761947433332,-250.0,0.00014249,2]
[392778051,1761947433342,-500.0,0.00014249,2]
[392778052,1761947433352,-250.0,0.00014249,2]
[392778053,1761947433363,-250.0,0.00014249,2]
[392778054,1761947433372,-500.0,0.00014249,2]
[392778055,1761947433382,-267.78983171,0.00014249,2]
[392778056,1761947433392,-250.0,0.00014249,2]
[392778057,1761947433401,-500.0,0.00014249,2]
[392778058,1761947433411,-250.0,0.00014249,2]
[392778059,1761947433420,-250.0,0.00014249,2]
[392778060,1761947433430,-250.0,0.00014249,2]
[392778061,1761947433439,-250.0,0.00014249,2]
[392778062,1761947433448,-250.0,0.00014249,2]
[392778063,1761947433458,-250.0,0.00014249,2]
[392778064,1761947433467,-250.0,0.00014249,2]
[392778065,1761947433477,-250.0,0.00014249,2]
[392778066,1761947433486,-250.0,0.00014249,2]
[392778067,1761947433495,-277.35679052,0.00014249,2]
[392778068,1761947433505,-150.0,0.00014487,2]
[392778069,1761947433514,-215.79980123,0.00014574,2]
[392778070,1761947433523,-4909.0,0.00014588,2]
[392778071,1761947433532,-4909.0,0.00014688,2]
[392778072,1761947433541,-4909.0,0.000147,2]
[392778073,1761947433550,-4909.0,0.00014703,2]
[392778074,1761947433559,-221.61206356,0.00014712,2]
[392778075,1761947433569,-151.0,0.00014716,2]
[392778076,1761947433578,-151.0,0.00014717,2]
[392778077,1761947433587,-151.0,0.00014717,2]
[392778078,1761947433596,-151.0,0.00014717,2]
[392778079,1761947433606,-150.0,0.00014737,2]
[392778080,1761947433616,-890.1762498,0.00014752,2]
[392778081,1761947433625,-4909.0,0.00014764,2]
[392778082,1761947433634,-4909.0,0.00014788,2]
[392778083,1761947433644,-4909.0,0.00014789,2]
[392778084,1761947433654,-438.64962446,0.00014797,2]
[392778085,1761947433663,-595.37131296,0.00014797,2]
[392778086,1761947433672,-1000.0,0.000148,2]
[392778087,1761947433682,-438.64962443,0.00014808,2]
[392778088,1761947433692,-438.64962443,0.0001482,2]
[392778089,1761947433702,-438.64962443,0.00014831,2]
[392778090,1761947433711,-438.64962443,0.00014843,2]
[392778091,1761947433720,-4909.0,0.00014847,2]
[392778092,1761947433730,-438.64962443,0.00014854,2]
[392778093,1761947433740,-438.64962443,0.00014866,2]
[392778094,1761947433749,-243.53715851,0.00014873,2]
[392778095,1761947433759,-485.04266598,0.00014873,2]
[392778096,1761947433768,-500.0,0.00014873,2]
[392778097,1761947433778,-500.0,0.00014873,2]
[392778098,1761947433788,-500.0,0.00014873,2]
[392778099,1761947433798,-438.64962443,0.00014877,2]
[392778100,1761947433807,-200.0,0.0001488,2]
[392778101,1761947433816,-438.64962443,0.00014889,2]
[392778102,1761947433826,-4909.0,0.00014891,2]
[392778103,1761947433835,-500.0,0.00014897,2]
[392778104,1761947433844,-500.0,0.00014897,2]
[392778105,1761947433854,-500.0,0.00014897,2]
[392778106,1761947433863,-500.0,0.00014897,2]
[392778107,1761947433875,-500.0,0.00014897,2]
[392778108,1761947433886,-500.0,0.00014897,2]
[392778109,1761947433895,-500.0,0.00014897,2]
[392778110,1761947433904,-500.0,0.00014897,2]
[392778111,1761947433915,-500.0,0.00014897,2]
[392778112,1761947433924,-500.0,0.00014897,2]
[392778113,1761947433933,-500.0,0.00014897,2]
[392778114,1761947433943,-500.0,0.00014897,2]
[392778115,1761947433953,-500.0,0.00014897,2]
[392778116,1761947433962,-500.0,0.00014897,2]
[392778117,1761947433971,-500.0,0.00014897,2]
[392778118,1761947433980,-500.0,0.00014897,2]
[392778119,1761947433990,-500.0,0.00014897,2]
[392778120,1761947433999,-500.0,0.00014897,2]
[392778121,1761947434008,-500.0,0.00014897,2]
[392778122,1761947434018,-500.0,0.00014897,2]
[392778123,1761947434027,-500.0,0.00014897,2]
[392778124,1761947434036,-263.84038569,0.00014897,2]
[392778125,1761947434046,-500.0,0.00014897,2]
[392778126,1761947434055,-500.0,0.00014897,2]
[392778127,1761947434065,-500.0,0.00014897,2]
[392778128,1761947434076,-500.0,0.00014897,2]
[392778129,1761947434085,-500.0,0.00014897,2]
[392778130,1761947434094,-500.0,0.00014897,2]
[392778131,1761947434104,-500.0,0.00014897,2]
[392778132,1761947434114,-527.5069,0.00014899,2]
[392778133,1761947434123,-5021.6497,0.000149,2]
[392778134,1761947434133,-1000.0,0.000149,2]
[392778135,1761947434142,-3036.30427486,0.000149,2]
[392778136,1761947434152,-287.01437549,0.000149,2]
[392778137,1761947434161,-176.51223696,0.000149,2]
[392778138,1761947434170,-438.64962443,0.000149,2]
[392778139,1761947434180,-4909.0,0.00014914,2]
[392778140,1761947434189,-150.0,0.00014936,2]
[392778141,1761947434198,-436.0,0.00014936,2]
[392778142,1761947434208,-150.0,0.00014936,2]
[392778143,1761947434217,-802.0,0.00014936,2]
[392778144,1761947434226,-150.0,0.00014936,2]
[392778145,1761947434236,-150.0,0.00014936,2]
[392778146,1761947434245,-500.0,0.00014936,2]
[392778147,1761947434255,-150.0,0.00014936,2]
[392778148,1761947434264,-150.0,0.00014936,2]
[392778149,1761947434273,-150.0,0.00014936,2]
[392778150,1761947434282,-500.0,0.00014936,2]
[392778151,1761947434291,-500.0,0.00014936,2]
[392778152,1761947434301,-257.02911303,0.00014936,2]
[392778153,1761947434310,-500.0,0.00014936,2]
[392778154,1761947434320,-500.0,0.00014936,2]
[392778155,1761947434330,-150.0,0.00014936,2]
[392778156,1761947434339,-200.0,0.00014936,2]
[392778157,1761947434348,-150.0,0.00014936,2]
[392778158,1761947434357,-150.0,0.00014936,2]
[392778159,1761947434367,-150.0,0.00014936,2]
[392778160,1761947434375,-500.0,0.00014936,2]
[392778161,1761947434387,-500.0,0.00014936,2]
[392778162,1761947434395,-500.0,0.00014973,2]
[392778163,1761947434404,-511.4774966,0.00014973,2]
[392778164,1761947434413,-500.0,0.00014973,2]
[392778165,1761947434423,-509.03494813,0.00014973,2]
[392778166,1761947434433,-643.8005641,0.00014973,2]
[392778167,1761947434442,-500.0,0.00014973,2]
[392778168,1761947434451,-500.0,0.00014973,2]
[392778169,1761947434460,-500.0,0.00014973,2]
[392778170,1761947434470,-500.0,0.00014973,2]
[392778171,1761947434479,-150.0,0.00014986,2]
[392778172,1761947434488,-1327.0,0.00014986,2]
[392778173,1761947434497,-162.06515158,0.00014986,2]
[392778174,1761947434506,-448.91475956,0.0001499,2]
[392778175,1761947434515,-448.91475956,0.0001499,2]
[392778176,1761947434524,-448.91475956,0.0001499,2]
[392778177,1761947434533,-1371.26,0.00014991,2]
[392778178,1761947434542,-164.47525719,0.00014991,2]
[392778179,1761947434551,-213.49911288,0.00014991,2]
[392778180,1761947434561,-150.0,0.00014991,2]
[392778181,1761947434570,-150.0,0.00014991,2]
[392778182,1761947434579,-300.0,0.00014993,2]
[392778183,1761947434588,-372.94091907,0.00014993,2]
[392778184,1761947434597,-300.0,0.00014993,2]
[392778185,1761947434606,-250.0,0.00014993,2]
[392778186,1761947434616,-151.0,0.00014997,2]
[392778187,1761947434626,-500.0,0.00014998,2]
[392778188,1761947434635,-175.02049817,0.00014999,2]
[392778189,1761947434644,-579.92354425,0.00014999,2]
[392778190,1761947434654,-500.0,0.00014999,2]
[392778191,1761947434664,-500.0,0.00014999,2]
[392778192,1761947434673,-500.0,0.00014999,2]
[392778193,1761947434682,-500.0,0.00014999,2]
[392778194,1761947434692,-500.0,0.00014999,2]
[392778195,1761947434701,-500.0,0.00014999,2]
[392778196,1761947434711,-500.0,0.00014999,2]
[392778197,1761947434720,-500.0,0.00014999,2]
[392778198,1761947434729,-500.0,0.00014999,2]
[392778199,1761947434738,-556.97992866,0.00014999,2]
[392778200,1761947434747,-500.0,0.00014999,2]
[392778201,1761947434765,-500.0,0.00014999,2]
[392778202,1761947434777,-150.0,0.00014999,2]
[392778203,1761947434786,-150.0,0.00014999,2]
[392778204,1761947434795,-500.0,0.00014999,2]
[392778205,1761947434804,-500.0,0.00014999,2]
[392778206,1761947434813,-500.0,0.00014999,2]
[392778207,1761947434822,-500.0,0.00014999,2]
[392778208,1761947434831,-500.0,0.00014999,2]
[392778209,1761947434840,-500.0,0.00014999,2]
[392778210,1761947434849,-478.55,0.00014999,2]
[392778211,1761947434861,-153.06357014,0.00014999,2]
[392778212,1761947434872,-500.0,0.00014999,2]
[392778213,1761947434882,-150.0,0.00014999,2]
[392778214,1761947434891,-150.0,0.00014999,2]
[392778215,1761947434900,-150.0,0.00014999,2]
[392778216,1761947434909,-255.0,0.00014999,2]
[392778217,1761947434919,-599.43,0.00014999,2]
[392778218,1761947434928,-599.43,0.00014999,2]
[392778219,1761947434937,-599.43,0.00014999,2]
[392778220,1761947434947,-599.43,0.00014999,2]
[392778221,1761947434956,-500.0,0.00014999,2]
[392778222,1761947434965,-599.43,0.00014999,2]
[392778223,1761947434974,-500.0,0.00014999,2]
[392778224,1761947434983,-599.43,0.00014999,2]
[392778225,1761947434992,-508.68908794,0.00014999,2]
[392778226,1761947435001,-599.43,0.00014999,2]
[392778227,1761947435010,-599.43,0.00014999,2]
[392778228,1761947435019,-638.36998471,0.00014999,2]
[392778229,1761947435028,-599.43,0.00014999,2]
[392778230,1761947435037,-599.43,0.00014999,2]
[392778231,1761947435046,-599.43,0.00014999,2]
[392778232,1761947435055,-599.43,0.00014999,2]
[392778233,1761947435064,-599.43,0.00014999,2]
[392778234,1761947435073,-599.43,0.00014999,2]
[392778235,1761947435082,-599.43,0.00014999,2]
[392778236,1761947435092,-599.43,0.00014999,2]
[392778237,1761947435101,-599.43,0.00014999,2]
[392778238,1761947435110,-599.43,0.00014999,2]
[392778239,1761947435119,-599.43,0.00014999,2]
[392778240,1761947435128,-599.43,0.00014999,2]
[392778241,1761947435138,-599.43,0.00014999,2]
[392778242,1761947435147,-599.43,0.00014999,2]